Cogmind - Beta 9.2 @@@ ROGUE MODE // 2019.12.05 @ 23:53:23 Player: cl0y-b1cks Result: Destroyed by G-34 Mercenary with Small Laser Performance ------------- Evolutions (1) 500 Regions Visited (3) 600 Robots Destroyed (26) 130 Value Destroyed (767) 767 Prototype IDs (2) 40 Alien Tech Used (0) 0 Bonus (0) 0 TOTAL SCORE: 2037 Bonus ------- None Cogmind --------- Core Integrity 0/400 Matter 270/300 Energy 44/100 System Corruption 23% Temperature Cool (163) Movement Walking (120) Location -9/Materials Parts ------- > --- POWER (1) -------- (None) > --- PROPULSION (2) --- Aluminum Leg Aluminum Leg > --- UTILITY (4) ------ Small Storage Unit > --- WEAPON (2) ------- Spread Laser Mining Claw > --- INVENTORY (6) ---- Aluminum Leg Heat Sink Advanced Beam Cannon Heavy Assault Rifle Peak State ------------ > --- POWER ------------ Light Nuclear Core > --- PROPULSION ------- Improved Flight Unit Improved Flight Unit > --- UTILITY ---------- Improved Heat Sink Small Storage Unit Armor Integrity Analyzer Hacking Suite > --- WEAPON ----------- Mining Claw > --- INVENTORY -------- Light Ion Engine Aluminum Leg Heat Sink Spread Laser Advanced Beam Cannon Heavy Assault Rifle [Rating: 20] Favorites ----------- Power Light Ion Engine Engine Light Ion Engine Power Core Light Nuclear Core Propulsion Aluminum Leg Leg Aluminum Leg Flight Unit Improved Flight Unit Utility Small Storage Unit Device Heat Sink Storage Small Storage Unit Processor Armor Integrity Analyzer Hackware Hacking Suite Protection Hardened Light Armor Plating Weapon Mining Claw Energy Gun Small Laser Energy Cannon Advanced Beam Cannon Ballistic Gun Assault Rifle Ballistic Cannon Light Cannon Slashing Weapon Mining Claw Special Melee Weapon Datajack Build | -11 -10 -10 -9 ------- Run | Scr Mat Min Mat Slots Evolved 2 | . . . 2 Power . | . . . . Propulsion . | . . . . Utility 2 | . . . 2 Weapon . | . . . . Parts Attached 37 | 6 . 1 30 Power 5 | 1 . . 4 Engine 4 | 1 . . 3 Core 1 | . . . 1 Reactor . | . . . . Propulsion 8 | 2 . . 6 Treads . | . . . . Leg 6 | 2 . . 4 Wheel . | . . . . Hover . | . . . . Flight 2 | . . . 2 Utility 11 | 1 . 1 9 Device 5 | . . 1 4 Storage 1 | 1 . . . Processor 1 | . . . 1 Hackware 1 | . . . 1 Protection 3 | . . . 3 Artifact . | . . . . Weapon 13 | 2 . . 11 Energy Gun 2 | 1 . . 1 Energy Cannon 2 | . . . 2 Ballistic Gun 3 | 1 . . 2 Ballistic Cannon 2 | . . . 2 Launcher . | . . . . Special Weapon . | . . . . Impact Weapon . | . . . . Slashing Weapon 3 | . . . 3 Piercing Weapon . | . . . . Special Melee Weapon 1 | . . . 1 Unidentified Prototypes 2 | . . . 2 Parts Lost 17 | . . . 17 Power 4 | . . . 4 Propulsion 4 | . . . 4 Utility 6 | . . . 6 Weapon 3 | . . . 3 Highest Loss Streak 6 | . . . 6 Average Slot Usage (%) 87 | . 85 88 87 Engine 9 | . 14 14 7 Core 1 | . . . 1 Leg 18 | . 28 28 15 Flight 3 | . . . 4 Device 8 | . . 3 10 Storage 11 | . 14 14 11 Processor 3 | . . . 4 Hackware 2 | . . . 3 Protection 5 | . . . 7 Energy Gun 3 | . 14 14 . Ballistic Gun 7 | . 14 14 5 Ballistic Cannon 1 | . . . 2 Slashing Weapon 8 | . . . 10 Naked Turns . | . . . . Heaviest Build 25 | 10 10 11 25 Greatest Support 20 | 20 20 20 20 Greatest Overweight (x) 7 | . . . 7 Average Overweight (x) . | . . . . Largest Inventory Capacity 6 | 6 6 6 6 Average Capacity 5 | 4 6 6 6 Most Carried 6 | 2 . 3 6 Average Carried 3 | . . 1 3 Final Capacity 6 | 6 6 6 6 Final Carried 4 | . . 3 4 Class Distribution -------------------- 75% | Mutant 11% | Sprinter 10% | Scavenger-Mutant Dominant Class ---------------- Mutant | -10/Materials Mutant | -10/Mines Mutant | -9/Materials Resources | -11 -10 -10 -9 ----------- Run | Scr Mat Min Mat Matter Collected 616 | 97 163 31 325 Remotely . | . . . . Salvage Created 1044 | . . 118 926 Parts 63 | . . 7 56 Haulers Intercepted 1 | . . . 1 Recyclers Shooed 1 | . . . 1 Parts Field Recycled . | . . . . Retrieved Matter . | . . . . Parts Self-Destructed . | . . . . Prevented . | . . . . Kills | -11 -10 -10 -9 ------- Run | Scr Mat Min Mat Combat Hostiles Destroyed 21 | . . 2 19 Melee 8 | . . . 8 Guns 8 | . . 2 6 Cannons 5 | . . . 5 Classes Destroyed 8 | . . 2 6 Worker 1 | . . 1 . Hauler 1 | . . . 1 Recycler 1 | . . . 1 Operator 2 | . . . 2 Swarmer 3 | . . . 3 Grunt 14 | . . 2 12 Brawler 1 | . . . 1 Sentry 3 | . . . 3 Best Kill Streak 5 | . . 3 5 Combat Bots Only 5 | . . 2 5 Max Kills in Single Turn 1 | . . 1 1 Gunslinging . | . . . . Exploded . | . . . . Melee 1 | . . . 1 Uniques/NPCs Destroyed . | . . . . Combat | -11 -10 -10 -9 -------- Run | Scr Mat Min Mat Damage Taken 2051 | . . 151 1900 Core 443 | . . 43 400 Absorbed by Shields . | . . . . Core Remaining (%) 91 | 100 . 82 . Volleys Fired 49 | . . 7 42 Largest 2 | . . 2 1 Hottest 68 | . . 60 68 Shots Fired 56 | . . 14 42 Gun 46 | . . 14 32 Cannon 10 | . . . 10 Launcher . | . . . . Special . | . . . . Kinetic 42 | . . 7 35 Thermal 14 | . . 7 7 Explosive . | . . . . Electromagnetic . | . . . . Robot Hit Streak 8 | . . 5 8 Robot Miss Streak 2 | . . 2 2 Penetration Max . | . . . . Secondary Targets . | . . . . Shots Hit Robots 67 | . . 11 56 Core Hits 40 | . . 6 34 Critical Hits 4 | . . 1 3 Critical Kills 3 | . . . 3 Critical Parts Destroyed 1 | . . 1 . Melee Attacks 69 | . . . 69 Impact . | . . . . Slashing 67 | . . . 67 Piercing . | . . . . Sneak Attacks 3 | . . . 3 Combat Hostiles . | . . . . Follow-up Attacks . | . . . . Damage Inflicted 1401 | . . 142 1259 Guns 547 | . . 142 405 Cannons 127 | . . . 127 Explosions . | . . . . Melee 727 | . . . 727 Ramming . | . . . . Kinetic 496 | . . 73 423 Thermal 178 | . . 69 109 Explosive . | . . . . Electromagnetic . | . . . . Impact . | . . . . Slashing 727 | . . . 727 Piercing . | . . . . Highest Corruption 23 | . . . 23 Average Corruption 21 | . . . 21 Corruption Purged . | . . . . Effects 10 | . . . 10 Matter Fused 1 | . . . 1 Heat Flow Errors 1 | . . . 1 Data Loss (minor) 2 | . . . 2 Misdirections 1 | . . . 1 Targeting Errors 5 | . . . 5 Overload Shots . | . . . . Overflow Damage 52 | . . . 52 Projectiles . | . . . . Explosions . | . . . . Melee 52 | . . . 52 Knockbacks . | . . . . Impact . | . . . . Kinetic . | . . . . Secondary . | . . . . Self-Inflicted Damage . | . . . . Shots . | . . . . Rammed . | . . . . Targets Rammed . | . . . . Kicked . | . . . . Crushed . | . . . . Highest Temperature 87 | . . 87 87 Average Temperature 44 | . . 52 40 Received Heat Transfer 795 | . . 87 708 Siege Activations . | . . . . Robots Corrupted . | . . . . Combat Hostiles . | . . . . Parts Fried . | . . . . Impact Corruptions . | . . . . Robots Melted . | . . . . Combat Hostiles . | . . . . Parts Melted 1 | . . 1 . Heat Transferred 302 | . . 150 152 Parts Sabotaged . | . . . . Parts Stolen . | . . . . Parts Stripped . | . . . . Power Chain Reactions . | . . . . Missiles Intercepted . | . . . . Alert | -11 -10 -10 -9 ------- Run | Scr Mat Min Mat Peak Influence 274 | . . 70 274 Average Influence 122 | . . 23 159 Maximum Alert Level 1 | . . . 1 Low Security (%) 72 | 100 100 100 63 Level 1 27 | . . . 36 Level 2 . | . . . . Level 3 . | . . . . Level 4 . | . . . . Level 5 . | . . . . High Security . | . . . . Max Security . | . . . . Squads Dispatched 4 | . 1 . 3 Investigation 1 | . . . 1 Extermination . | . . . . Reinforcement 3 | . 1 . 2 Assault . | . . . . Garrison . | . . . . Intercept . | . . . . Construction Impeded . | . . . . Haulers Reinforced . | . . . . Stealth | -11 -10 -10 -9 --------- Run | Scr Mat Min Mat Distress Signals 2 | . . . 2 Communications Jammed . | . . . . Distress Signals . | . . . . Times Spotted 45 | . 1 2 42 Peak Tracking Total 8 | . 1 2 8 Tactical Retreats 7 | . . . 7 Traps | -11 -10 -10 -9 ------- Run | Scr Mat Min Mat Traps Triggered 1 | . . . 1 Indirectly . | . . . . Trap Hack Attempts . | . . . . Triggered . | . . . . Disarmed . | . . . . Reprogrammed . | . . . . Reused . | . . . . Traps Extracted . | . . . . Installed . | . . . . Triggered . | . . . . Machines | -11 -10 -10 -9 ---------- Run | Scr Mat Min Mat Machines Disabled 1 | . . 1 . Max in Single Turn 1 | . . 1 . Machines Sabotaged . | . . . . Garrisons Compromised . | . . . . Overloaded Fab Kills . | . . . . Fab Network Shutdowns . | . . . . Hacking | -11 -10 -10 -9 --------- Run | Scr Mat Min Mat Machines Accessed . | . . . . Terminals . | . . . . Fabricators . | . . . . Repair Stations . | . . . . Recycling Units . | . . . . Scanalyzers . | . . . . Garrison Access . | . . . . Total Hacks . | . . . . Successful . | . . . . Failed . | . . . . Catastrophic . | . . . . Database Lockouts . | . . . . Manual . | . . . . Terminals . | . . . . Fabricators . | . . . . Repair Stations . | . . . . Recycling Units . | . . . . Scanalyzers . | . . . . Garrison Access . | . . . . Terminal Hacks . | . . . . Fabricator Hacks . | . . . . Repair Station Hacks . | . . . . Recycling Unit Hacks . | . . . . Scanalyzer . | . . . . Garrison Access Hacks . | . . . . Unauthorized Hacks . | . . . . Terminals . | . . . . Fabricators . | . . . . Repair Stations . | . . . . Recycling Units . | . . . . Scanalyzers . | . . . . Garrison Access . | . . . . Data Cores Recovered . | . . . . Used . | . . . . Hacking Detections . | . . . . Full Trace Events . | . . . . Feedback Events . | . . . . Feedback Blocked . | . . . . Robot Schematics Acquired . | . . . . Robots Built . | . . . . Matter . | . . . . Time . | . . . . Total Robot Build Rating . | . . . . Part Schematics Acquired . | . . . . Parts Built . | . . . . Matter . | . . . . Time . | . . . . Total Part Build Rating . | . . . . Parts Repaired . | . . . . Time . | . . . . Parts Recycled . | . . . . Recycled Matter . | . . . . Retrieved Matter . | . . . . Retrieved Components . | . . . . Parts Scanalyzed . | . . . . Part Schematics Acquired . | . . . . Parts Damaged . | . . . . Bothacking | -11 -10 -10 -9 ------------ Run | Scr Mat Min Mat Used RIF Installer . | . . . . Robots Hacked 1 | . . . 1 Non-combat . | . . . . Combat 1 | . . . 1 Robot Hacks Applied 1 | . . . 1 parse_system 1 | . . . 1 Relay Couplers Released . | . . . . Robots Rewired . | . . . . Allies Hacked . | . . . . Hacks Repelled . | . . . . Allies | -11 -10 -10 -9 -------- Run | Scr Mat Min Mat Total Allies . | . . . . Largest Group . | . . . . Highest-Rated Group . | . . . . Highest-Rated Ally . | . . . . Total Orders . | . . . . Ally Attacks . | . . . . Total Damage . | . . . . Kills . | . . . . Allies Corrupted . | . . . . Allies Melted . | . . . . Intel | -11 -10 -10 -9 ------- Run | Scr Mat Min Mat Robot Analysis Total . | . . . . Derelict Logs Recovered 1 | . . 1 . Drone Launches . | . . . . Drone Recoveries . | . . . . Exploration | -11 -10 -10 -9 ------------- Run | Scr Mat Min Mat Turns Passed 1218 | 44 54 213 907 Spaces Moved 870 | 34 46 154 636 Core 20 | 11 . . 9 Treads . | . . . . Legs 524 | 23 46 154 301 Wheels . | . . . . Hover . | . . . . Flight 326 | . . . 326 Fastest Speed 32 | 50 120 120 32 Average Speed 93 | 97 120 120 84 Slowest Speed 400 | 120 120 120 400 Overloaded Moves . | . . . . Propulsion Burnouts . | . . . . Robots Hopped . | . . . . Cave-ins Triggered 3 | . . . 3 Exploration Rate (%) 24 | 3 11 39 44 Regions Visited 3 Branch Regions 1 Pre-discovered Areas . | . . . . Known Exits Taken . | . . . . Unknown Exits Taken 3 | 1 1 1 . Scrap Searched 2 | . . 2 . Spaces Dug 23 | . . . 23 Terrain Destroyed 23 | . . . 23 Melee 23 | . . . 23 Projectile . | . . . . AOE . | . . . . Actions | -11 -10 -10 -9 --------- Run | Scr Mat Min Mat Total 1083 | 45 45 167 826 Wait 28 | . . 3 25 Move 864 | 33 45 153 633 Hop . | . . . . Pick Up 14 | 6 . 3 5 Fast Attach 20 | . . 1 19 Attach 16 | 6 . . 10 Detach 10 | . . . 10 Swap 1 | . . . 1 Drop 9 | . . . 9 Fire 49 | . . 7 42 Melee 69 | . . . 69 Ram . | . . . . Kick . | . . . . Crush . | . . . . Escape Stasis 3 | . . . 3 Rewire . | . . . . Trap . | . . . . Miscellaneous . | . . . . Route ------- -11/Scrapyard -10/Materials -10/Mines -9/Materials (discovered 1 exit: Mat) History --------- Turn | Location | Event 7 | -11/Scrapyard | Discovered new exit (range 15) 45 | -11/Scrapyard | Entered Materials 90 | -10/Materials | Discovered new exit (range 9) 99 | -10/Materials | Entered Mines 194 | -10/Mines | Learned 2 Materials zone layouts 288 | -10/Mines | Discovered new exit (range 11) 300 | -10/Mines | Build established: Mutant 312 | -10/Mines | Entered Materials 312 | -9/Materials | Evolved 2 slots: Utility x2 313 | -9/Materials | Identified exit to Materials 486 | -9/Materials | Lost 3 parts (1p1u1w) 1042 | -9/Materials | Core integrity fell below 50% 1145 | -9/Materials | Crushed by falling debris 1145 | -9/Materials | Crushed by falling debris 1146 | -9/Materials | Core integrity fell below 20% 1146 | -9/Materials | System corruption reached 10% 1151 | -9/Materials | Crushed by falling debris 1182 | -9/Materials | Lost 6 parts (2n3u1w) 1219 | -9/Materials | Destroyed by G-34 Mercenary with Small Laser Last Messages --------------- 01151_ The unstable cave ceiling collapses. 01151_ Crushed by falling debris. 01151_ Imp. Flight Unit destroyed. 01151_ System corrupted by crushing effect (+5). 01151_ Hacking Suite destroyed. 01151_ System corrupted by crushing effect (+4). 01157_ System corrupted: Mining Claw targeting data glitched. 01163_ Acquired Aluminum Leg. 01172_ System corrupted: Component data lost. 01183_ Lgt. Ion Engine destroyed. 01183_ System corrupted by crushing effect (+2). 01185_ System corrupted: Aluminum Leg stumbles. 01190_ U-05 Engineer builds a Wall. 01198_ System corrupted: Mining Claw targeting data glitched. 01204_ System corrupted: Matter fused (-5). 01204_ G-34 Mercenary destroyed. 01210_ System corrupted: Spread Laser targeting data glitched. 01214_ B-36 Bruiser destroyed. 01218_ System corrupted: Spread Laser targeting data glitched. 01219_ System corrupted: Heat flow error (+107). Map ----- +----------------------------------------------------+ | ######### #???" ????# # + | | #???????# #??? ?????######## # | | #???????###### ####/###???#??????# """ # | | #????????????# ## #???#??????# """ ### | | #???????????## ## #???#??????# """ #?? | | ###########?# + #???#??????# #?? | | ## """ #?# # % #???################## | | ## "T" ### # ! #???# #??# | | ## ## + #???# #??# "" | | ## !! + #######???# """ "" #??# "" | | # !! ## #??###????# """ """#??# "" | | # ## " #? #????# """ S"#??# | | # ## """ #? ""#????+ """#??# "" | | + ! ## "" # T"#????# """#??# "" | | # ## """ # ""#????# #??# "" | | ########### "" + #????#### ######### | | ## ## """ # #???? ####### ###+# | | ## """ ## #???? | | "" #?? #???? | | " #?? #???? | | #???###???? ####### ##### | | #??????????## ### ##???? | | +#### #???????????# #?# #????? | | ### ########## #???????????# #?# #????? | | """ #?# #????????# #??###??????????????????????? | | """ #?# #????????# #??#@#??????????????????????? | | """ #?# #????????#%####%####???????????????????? | | ### ##???????#[# *g# ##???????????????????? | | ###+## #???????#*# #######???????????????????? | | #???????# ###?????????????????????????? | | #???????# #???????????????????????????? | | #???????# #???????????????????????????? | | ###### #??????? ???????????????????????????? | | #??### ###??????? ???????????????????????????? | | " ###### #????????? ???????????????????????????? | | " ##!! #????????? ???????????????????????????? | | " ##!! #???###??? ???????????????????????????? | | " ##!! #?? #??? ???????????????????????????? | | " ##!! #?? " #??? ???????????????????????????? | | ##! #? ""#??? ???????????????????????????? | | #!! ! #? ""#??? ???????????????????????????? | | ######## # """#??? ???????????????????????????? | | = # "" #???# ???????????????????????????? | | / """#?????????????????????????????????? | | # """#?????????????????????????????????? | | ####### ## """#?????????????????????????????????? | | ??????# #?? " #?????????????????????????????????? | | ??????# #?? #?????????????????????????????????? | | ??????# #??? ] #?????????????????????????????????? | | #######+##??####????????????????# """ # """ #? | +----------------------------------------------------+ Best States ------------- Heat Dissipation 52 Energy Generation 14 Energy Capacity 265 Matter Stores 300 Matter Capacity 300 Sight Range 16 Terrain Scan Density 10 Armor Coverage 300 Evasion (%) 63 Armor Integrity Analysis 33 Offensive Hacking 10 Item Schematics ----------------- None Robot Schematics ------------------ None Fabricated ------------ Nothing Alien Tech Used ----------------- None Achievements -------------- None Challenges ------------ None Game ------ Seed SpikedTargetMachine Manual? 0 Play Time 00:15:36 Cumulative 116.1 hours Start 2019.12.05 @ 23:40:24 End 2019.12.05 @ 23:53:23 Sessions 1 Manual Loads 0 Difficulty Rogue Special Mode None Game No. 205 Rogue 205 Adventurer 0 Explorer 0 Win Type - Total 0 Types 0/0/0/0/0/0/0 Lore% 17 Gallery% 46 Achievement% 30 Wizard Run 0 Options --------- ASCII 0 Keyboard 1 Movement Numpad Keybinds 0 Fullscreen 2 Font 18/SmallcapsGlow Map View 76x50 Tactical HUD 1 Map Filters NONE Filters NONE Steam 1 RUN: 418bf459-dbff-4cc3-b45b-033f86cd697a